[Event "Titled Tuesday Blitz November 08 Late 2022"]
[White "Kleiman, Jake"]
[Black "Prem, Pranav"]
[WhiteFideId "2020041"]
[BlackFideId "30901057"]
[WhiteElo "2510"]
[BlackElo "1970"]
[Result "0-1"]
[Round "04"]
[TimeControl "180+1"]
[Date "2022.11.09"]
[WhiteClock "0:01:12"]
[BlackClock "0:01:04"]

1. e4 {[%clk 0:03:00]}  c5 {[%clk 0:02:59]} 2. c3 {[%clk 0:03:01]}  d5 {[%clk 0:02:58]} 3. exd5 {[%clk 0:03:02]}  Qxd5 {[%clk 0:02:58]} 4. d4 {[%clk 0:03:02]}  Nf6 {[%clk 0:02:57]} 5. Nf3 {[%clk 0:03:03]}  e6 {[%clk 0:02:49]} 6. Na3 {[%clk 0:03:03]}  Nc6 {[%clk 0:02:43]} 7. Be3 {[%clk 0:03:03]}  cxd4 {[%clk 0:02:41]} 8. Nb5 {[%clk 0:03:03]}  Qd8 {[%clk 0:02:41]} 9. Nbxd4 {[%clk 0:03:04]}  Bd7 {[%clk 0:02:18]} 10. Bd3 {[%clk 0:03:03]}  Bd6 {[%clk 0:02:16]} 11. O-O {[%clk 0:03:02]}  O-O {[%clk 0:02:16]} 12. Bg5 {[%clk 0:02:55]}  h6 {[%clk 0:02:10]} 13. Bh4 {[%clk 0:02:54]}  Nxd4 {[%clk 0:02:06]} 14. Nxd4 {[%clk 0:02:54]}  Be7 {[%clk 0:01:53]} 15. Qe2 {[%clk 0:02:50]}  Qb6 {[%clk 0:01:49]} 16. Rad1 {[%clk 0:02:48]}  Rfd8 {[%clk 0:01:44]} 17. Nf5 {[%clk 0:02:40]}  exf5 {[%clk 0:01:36]} 18. Qxe7 {[%clk 0:02:39]}  Re8 {[%clk 0:01:32]} 19. Qa3 {[%clk 0:02:35]}  g5 {[%clk 0:01:28]} 20. Bg3 {[%clk 0:01:33]}  f4 {[%clk 0:01:27]} 21. Bh7+ {[%clk 0:01:17]}  Kxh7 {[%clk 0:01:21]} 22. Rd6 {[%clk 0:01:16]}  Qb5 {[%clk 0:01:04]} 23. Rxf6 {[%clk 0:01:16]}  Qxf1+ {[%clk 0:01:03]} 24. Kxf1 {[%clk 0:01:12]}  Bb5+ {[%clk 0:01:04]} 0-1


[Site "https://www.chess.com"]

[Event "Titled Tuesday Blitz November 08 Late 2022"]
[White "Kollars, Dmitrij"]
[Black "Principe, Gerson"]
[WhiteFideId "12909572"]
[BlackFideId "3804550"]
[WhiteElo "2584"]
[BlackElo "2280"]
[Result "1-0"]
[Round "04"]
[TimeControl "180+1"]
[Date "2022.11.08"]
[WhiteClock "0:00:23"]
[BlackClock "0:00:15"]

1. Nf3 {[%clk 0:03:00]}  Nf6 {[%clk 0:02:59]} 2. c4 {[%clk 0:02:57]}  e6 {[%clk 0:02:59]} 3. Nc3 {[%clk 0:02:55]}  d5 {[%clk 0:02:54]} 4. e3 {[%clk 0:02:55]}  Be7 {[%clk 0:02:53]} 5. b3 {[%clk 0:02:55]}  O-O {[%clk 0:02:52]} 6. Bb2 {[%clk 0:02:55]}  c6 {[%clk 0:02:52]} 7. Be2 {[%clk 0:02:48]}  Nbd7 {[%clk 0:02:49]} 8. Qc2 {[%clk 0:02:48]}  b6 {[%clk 0:02:48]} 9. O-O {[%clk 0:02:44]}  Bb7 {[%clk 0:02:48]} 10. Rac1 {[%clk 0:02:39]}  Rc8 {[%clk 0:02:48]} 11. Qb1 {[%clk 0:02:37]}  a6 {[%clk 0:02:43]} 12. d4 {[%clk 0:02:33]}  c5 {[%clk 0:02:36]} 13. cxd5 {[%clk 0:02:33]}  exd5 {[%clk 0:02:34]} 14. Rfd1 {[%clk 0:02:30]}  Bd6 {[%clk 0:02:24]} 15. Qf5 {[%clk 0:02:19]}  Re8 {[%clk 0:02:01]} 16. dxc5 {[%clk 0:02:07]}  bxc5 {[%clk 0:01:53]} 17. Bd3 {[%clk 0:02:08]}  Qe7 {[%clk 0:01:42]} 18. Qh3 {[%clk 0:02:00]}  Ne5 {[%clk 0:01:31]} 19. Nxe5 {[%clk 0:01:52]}  Bxe5 {[%clk 0:01:30]} 20. Ba3 {[%clk 0:01:53]}  Bd6 {[%clk 0:01:23]} 21. Na4 {[%clk 0:01:50]}  g6 {[%clk 0:00:26]} 22. Bb2 {[%clk 0:01:48]}  Nd7 {[%clk 0:00:23]} 23. Bf1 {[%clk 0:01:03]}  Be5 {[%clk 0:00:20]} 24. Ba3 {[%clk 0:01:04]}  Bd6 {[%clk 0:00:20]} 25. Rc2 {[%clk 0:00:56]}  Red8 {[%clk 0:00:20]} 26. Be2 {[%clk 0:00:55]}  d4 {[%clk 0:00:17]} 27. Bf3 {[%clk 0:00:37]}  Bxf3 {[%clk 0:00:16]} 28. Qxf3 {[%clk 0:00:38]}  dxe3 {[%clk 0:00:17]} 29. Qxe3 {[%clk 0:00:38]}  Qxe3 {[%clk 0:00:16]} 30. fxe3 {[%clk 0:00:39]}  Be7 {[%clk 0:00:12]} 31. Rcd2 {[%clk 0:00:39]}  Nf6 {[%clk 0:00:09]} 32. Rxd8+ {[%clk 0:00:38]}  Rxd8 {[%clk 0:00:10]} 33. Rxd8+ {[%clk 0:00:38]}  Bxd8 {[%clk 0:00:11]} 34. Bxc5 {[%clk 0:00:38]}  Ne4 {[%clk 0:00:09]} 35. Bd4 {[%clk 0:00:38]}  Nd6 {[%clk 0:00:09]} 36. Kf1 {[%clk 0:00:33]}  f5 {[%clk 0:00:09]} 37. Ke2 {[%clk 0:00:33]}  Kf7 {[%clk 0:00:10]} 38. Kd3 {[%clk 0:00:33]}  a5 {[%clk 0:00:08]} 39. Nc3 {[%clk 0:00:32]}  Ke6 {[%clk 0:00:08]} 40. e4 {[%clk 0:00:32]}  fxe4+ {[%clk 0:00:07]} 41. Nxe4 {[%clk 0:00:33]}  Nb5 {[%clk 0:00:07]} 42. Bb2 {[%clk 0:00:32]}  Na7 {[%clk 0:00:04]} 43. Kc4 {[%clk 0:00:31]}  Nc6 {[%clk 0:00:05]} 44. Bc3 {[%clk 0:00:29]}  Kf5 {[%clk 0:00:03]} 45. Nd6+ {[%clk 0:00:29]}  Kf4 {[%clk 0:00:04]} 46. Nb7 {[%clk 0:00:30]}  Bc7 {[%clk 0:00:04]} 47. Kb5 {[%clk 0:00:25]}  Nb8 {[%clk 0:00:02]} 48. Bxa5 {[%clk 0:00:22]}  Be5 {[%clk 0:00:03]} 49. Bd2+ {[%clk 0:00:19]}  Ke4 {[%clk 0:00:04]} 50. a4 {[%clk 0:00:20]}  Kd3 {[%clk 0:00:04]} 51. Bh6 {[%clk 0:00:17]}  Bxh2 {[%clk 0:00:04]} 52. a5 {[%clk 0:00:17]}  Kc3 {[%clk 0:00:04]} 53. b4 {[%clk 0:00:17]}  Be5 {[%clk 0:00:03]} 54. Bf8 {[%clk 0:00:16]}  h5 {[%clk 0:00:03]} 55. a6 {[%clk 0:00:14]}  Nxa6 {[%clk 0:00:03]} 56. Kxa6 {[%clk 0:00:14]}  g5 {[%clk 0:00:03]} 57. b5 {[%clk 0:00:14]}  Kc4 {[%clk 0:00:03]} 58. Bd6 {[%clk 0:00:13]}  Bd4 {[%clk 0:00:04]} 59. b6 {[%clk 0:00:11]}  Bxb6 {[%clk 0:00:02]} 60. Kxb6 {[%clk 0:00:12]}  Kd5 {[%clk 0:00:03]} 61. Be7 {[%clk 0:00:12]}  g4 {[%clk 0:00:04]} 62. g3 {[%clk 0:00:12]}  Ke4 {[%clk 0:00:04]} 63. Bh4 {[%clk 0:00:13]}  Kf5 {[%clk 0:00:04]} 64. Kc5 {[%clk 0:00:14]}  Kg6 {[%clk 0:00:04]} 65. Nd6 {[%clk 0:00:15]}  Kh7 {[%clk 0:00:04]} 66. Kd5 {[%clk 0:00:16]}  Kg7 {[%clk 0:00:05]} 67. Ke6 {[%clk 0:00:16]}  Kh6 {[%clk 0:00:06]} 68. Kf6 {[%clk 0:00:16]}  Kh7 {[%clk 0:00:06]} 69. Kg5 {[%clk 0:00:17]}  Kg7 {[%clk 0:00:07]} 70. Ne4 {[%clk 0:00:18]}  Kh7 {[%clk 0:00:08]} 71. Kxh5 {[%clk 0:00:18]}  Kg8 {[%clk 0:00:09]} 72. Kxg4 {[%clk 0:00:19]}  Kf7 {[%clk 0:00:10]} 73. Kf5 {[%clk 0:00:19]}  Kg7 {[%clk 0:00:11]} 74. g4 {[%clk 0:00:19]}  Kf8 {[%clk 0:00:12]} 75. g5 {[%clk 0:00:20]}  Kg8 {[%clk 0:00:12]} 76. g6 {[%clk 0:00:21]}  Kf8 {[%clk 0:00:13]} 77. Kf6 {[%clk 0:00:21]}  Kg8 {[%clk 0:00:14]} 78. g7 {[%clk 0:00:21]}  Kh7 {[%clk 0:00:15]} 79. Kf7 {[%clk 0:00:22]}  Kh6 {[%clk 0:00:15]} 80. g8=Q {[%clk 0:00:23]} 1-0


[Site "https://www.chess.com"]

[Event "Titled Tuesday Blitz November 08 Late 2022"]
[White "Korkmaz, Necmettin"]
[Black "Shahaliyev, Ismayil"]
[WhiteFideId "6303285"]
[BlackFideId "13406388"]
[WhiteElo "2094"]
[BlackElo "2306"]
[Result "1-0"]
[Round "04"]
[TimeControl "180+1"]
[Date "2022.11.09"]
[WhiteClock "0:01:23"]
[BlackClock "0:00:08"]

1. e4 {[%clk 0:03:00]}  c6 {[%clk 0:02:09]} 2. d4 {[%clk 0:02:58]}  d5 {[%clk 0:02:09]} 3. e5 {[%clk 0:02:58]}  Bf5 {[%clk 0:02:09]} 4. Nf3 {[%clk 0:02:58]}  e6 {[%clk 0:02:08]} 5. Be2 {[%clk 0:02:57]}  Nd7 {[%clk 0:02:08]} 6. O-O {[%clk 0:02:58]}  h6 {[%clk 0:02:08]} 7. Nbd2 {[%clk 0:02:54]}  Ne7 {[%clk 0:02:07]} 8. Nb3 {[%clk 0:02:53]}  g5 {[%clk 0:01:46]} 9. Be3 {[%clk 0:02:51]}  Ng6 {[%clk 0:01:46]} 10. Ne1 {[%clk 0:02:44]}  Nf4 {[%clk 0:01:37]} 11. Nd3 {[%clk 0:02:40]}  Nxe2+ {[%clk 0:01:24]} 12. Qxe2 {[%clk 0:02:40]}  Qb6 {[%clk 0:01:00]} 13. f4 {[%clk 0:02:35]}  g4 {[%clk 0:01:00]} 14. Ndc5 {[%clk 0:02:29]}  a5 {[%clk 0:00:47]} 15. Nxd7 {[%clk 0:02:27]}  Kxd7 {[%clk 0:00:46]} 16. Nc5+ {[%clk 0:02:27]}  Bxc5 {[%clk 0:00:46]} 17. dxc5 {[%clk 0:02:28]}  Qa6 {[%clk 0:00:37]} 18. Qd2 {[%clk 0:02:22]}  a4 {[%clk 0:00:37]} 19. Bd4 {[%clk 0:02:16]}  h5 {[%clk 0:00:37]} 20. b3 {[%clk 0:02:16]}  h4 {[%clk 0:00:37]} 21. c4 {[%clk 0:02:14]}  h3 {[%clk 0:00:37]} 22. g3 {[%clk 0:02:14]}  Rhd8 {[%clk 0:00:24]} 23. cxd5 {[%clk 0:02:12]}  exd5 {[%clk 0:00:19]} 24. e6+ {[%clk 0:02:11]}  fxe6 {[%clk 0:00:17]} 25. Qe3 {[%clk 0:02:08]}  Be4 {[%clk 0:00:15]} 26. f5 {[%clk 0:02:06]}  exf5 {[%clk 0:00:16]} 27. Qh6 {[%clk 0:02:03]}  Re8 {[%clk 0:00:06]} 28. Qd6+ {[%clk 0:01:57]}  Kc8 {[%clk 0:00:06]} 29. Rae1 {[%clk 0:01:49]}  Qa5 {[%clk 0:00:07]} 30. Qg6 {[%clk 0:01:41]}  Qd8 {[%clk 0:00:06]} 31. Rxf5 {[%clk 0:01:38]}  Rg8 {[%clk 0:00:06]} 32. Qe6+ {[%clk 0:01:37]}  Kb8 {[%clk 0:00:07]} 33. Rf7 {[%clk 0:01:30]}  axb3 {[%clk 0:00:07]} 34. Be5+ {[%clk 0:01:25]}  Ka7 {[%clk 0:00:08]} 35. Qxc6 {[%clk 0:01:25]}  Qa5 {[%clk 0:00:08]} 36. Qxb7# {[%clk 0:01:23]} 1-0


[Site "https://www.chess.com"]

[Event "Titled Tuesday Blitz November 08 Late 2022"]
[White "Kravtsiv, Martyn"]
[Black "Rodriguez Fontecha, Marcos"]
[WhiteFideId "14113147"]
[BlackFideId "2256576"]
[WhiteElo "2694"]
[BlackElo "2263"]
[Result "1-0"]
[Round "04"]
[TimeControl "180+1"]
[Date "2022.11.09"]
[WhiteClock "0:00:48"]
[BlackClock "0:00:17"]

1. e4 {[%clk 0:03:00]}  e6 {[%clk 0:02:59]} 2. d4 {[%clk 0:03:00]}  c5 {[%clk 0:02:57]} 3. Nf3 {[%clk 0:02:56]}  a6 {[%clk 0:02:57]} 4. Be2 {[%clk 0:02:54]}  b5 {[%clk 0:02:57]} 5. a4 {[%clk 0:02:51]}  b4 {[%clk 0:02:56]} 6. Be3 {[%clk 0:02:49]}  Nf6 {[%clk 0:02:54]} 7. Nbd2 {[%clk 0:02:46]}  Bb7 {[%clk 0:02:54]} 8. dxc5 {[%clk 0:02:43]}  Nxe4 {[%clk 0:02:53]} 9. Nxe4 {[%clk 0:02:41]}  Bxe4 {[%clk 0:02:54]} 10. O-O {[%clk 0:02:27]}  Qc7 {[%clk 0:02:48]} 11. Qd4 {[%clk 0:02:24]}  Bb7 {[%clk 0:02:45]} 12. Qxb4 {[%clk 0:02:23]}  Nc6 {[%clk 0:02:43]} 13. Qc3 {[%clk 0:02:22]}  f6 {[%clk 0:02:29]} 14. b4 {[%clk 0:02:19]}  Be7 {[%clk 0:02:21]} 15. Rfd1 {[%clk 0:01:54]}  O-O {[%clk 0:02:18]} 16. a5 {[%clk 0:01:36]}  Na7 {[%clk 0:02:03]} 17. Qb3 {[%clk 0:01:34]}  Bd5 {[%clk 0:01:54]} 18. Rxd5 {[%clk 0:01:32]}  exd5 {[%clk 0:01:54]} 19. Qxd5+ {[%clk 0:01:32]}  Kh8 {[%clk 0:01:55]} 20. Rd1 {[%clk 0:01:29]}  Rad8 {[%clk 0:01:48]} 21. Bxa6 {[%clk 0:01:27]}  Nc6 {[%clk 0:01:47]} 22. Qc4 {[%clk 0:01:19]}  Ra8 {[%clk 0:01:41]} 23. Bb5 {[%clk 0:01:18]}  Rfb8 {[%clk 0:01:38]} 24. c3 {[%clk 0:01:17]}  Qb7 {[%clk 0:01:29]} 25. Ba4 {[%clk 0:01:15]}  Ra7 {[%clk 0:01:02]} 26. h3 {[%clk 0:01:13]}  Qc7 {[%clk 0:00:53]} 27. Bc2 {[%clk 0:01:11]}  g6 {[%clk 0:00:45]} 28. Bf4 {[%clk 0:01:09]}  Qd8 {[%clk 0:00:42]} 29. Bxb8 {[%clk 0:01:08]}  Nxb8 {[%clk 0:00:40]} 30. Re1 {[%clk 0:01:01]}  Kg7 {[%clk 0:00:37]} 31. Qd5 {[%clk 0:00:59]}  Nc6 {[%clk 0:00:34]} 32. Bb3 {[%clk 0:00:59]}  Qf8 {[%clk 0:00:33]} 33. Ba4 {[%clk 0:00:57]}  Nb8 {[%clk 0:00:31]} 34. Bb5 {[%clk 0:00:55]}  Qf7 {[%clk 0:00:25]} 35. Qxf7+ {[%clk 0:00:54]}  Kxf7 {[%clk 0:00:25]} 36. Nd4 {[%clk 0:00:54]}  Bd8 {[%clk 0:00:25]} 37. Bc4+ {[%clk 0:00:53]}  Kf8 {[%clk 0:00:25]} 38. Nb5 {[%clk 0:00:53]}  Ra8 {[%clk 0:00:21]} 39. Bd5 {[%clk 0:00:51]}  Nc6 {[%clk 0:00:19]} 40. Bxc6 {[%clk 0:00:50]}  dxc6 {[%clk 0:00:20]} 41. Nd4 {[%clk 0:00:51]}  Bxa5 {[%clk 0:00:17]} 42. Ra1 {[%clk 0:00:48]} 1-0


[Site "https://www.chess.com"]

[Event "Titled Tuesday Blitz November 08 Late 2022"]
[White "Krishnan, Varun"]
[Black "Stoyanov, Tsvetan"]
[WhiteFideId "5054508"]
[BlackFideId "2917173"]
[WhiteElo "2529"]
[BlackElo "2349"]
[Result "0-1"]
[Round "04"]
[TimeControl "180+1"]
[Date "2022.11.09"]
[WhiteClock "0:00:02"]
[BlackClock "0:00:40"]

1. e4 {[%clk 0:03:00]}  g6 {[%clk 0:03:00]} 2. d4 {[%clk 0:02:59]}  Bg7 {[%clk 0:03:00]} 3. Nc3 {[%clk 0:02:59]}  d6 {[%clk 0:03:01]} 4. Be3 {[%clk 0:02:53]}  a6 {[%clk 0:03:01]} 5. Be2 {[%clk 0:02:53]}  b5 {[%clk 0:03:00]} 6. h4 {[%clk 0:02:52]}  h6 {[%clk 0:02:55]} 7. h5 {[%clk 0:02:51]}  g5 {[%clk 0:02:55]} 8. Qd2 {[%clk 0:02:41]}  Bb7 {[%clk 0:02:53]} 9. a3 {[%clk 0:02:40]}  Nd7 {[%clk 0:02:51]} 10. f4 {[%clk 0:02:39]}  gxf4 {[%clk 0:02:48]} 11. Bxf4 {[%clk 0:02:38]}  e5 {[%clk 0:02:48]} 12. Be3 {[%clk 0:02:38]}  Ngf6 {[%clk 0:02:42]} 13. d5 {[%clk 0:02:29]}  Nc5 {[%clk 0:02:40]} 14. Bf3 {[%clk 0:02:04]}  Qd7 {[%clk 0:02:30]} 15. Nge2 {[%clk 0:02:03]}  Ng4 {[%clk 0:02:28]} 16. Bxc5 {[%clk 0:01:46]}  dxc5 {[%clk 0:02:28]} 17. Ng3 {[%clk 0:01:46]}  Bf6 {[%clk 0:02:22]} 18. Nf5 {[%clk 0:01:38]}  Bg5 {[%clk 0:02:22]} 19. Qe2 {[%clk 0:01:33]}  Nf6 {[%clk 0:02:21]} 20. Rd1 {[%clk 0:01:29]}  O-O-O {[%clk 0:02:17]} 21. b4 {[%clk 0:01:20]}  cxb4 {[%clk 0:01:58]} 22. axb4 {[%clk 0:01:19]}  Ne8 {[%clk 0:01:54]} 23. Bg4 {[%clk 0:01:13]}  Kb8 {[%clk 0:01:54]} 24. Nxh6 {[%clk 0:01:07]}  Qe7 {[%clk 0:01:53]} 25. Nf5 {[%clk 0:01:03]}  Qxb4 {[%clk 0:01:52]} 26. Qf3 {[%clk 0:00:57]}  Nf6 {[%clk 0:01:48]} 27. O-O {[%clk 0:00:49]}  Rdg8 {[%clk 0:01:23]} 28. Ne2 {[%clk 0:00:37]}  Nxg4 {[%clk 0:01:21]} 29. Qxg4 {[%clk 0:00:35]}  Be3+ {[%clk 0:01:19]} 30. Nxe3 {[%clk 0:00:34]}  Rxg4 {[%clk 0:01:20]} 31. Nxg4 {[%clk 0:00:34]}  Qxe4 {[%clk 0:01:18]} 32. Nf6 {[%clk 0:00:21]}  Qxe2 {[%clk 0:01:17]} 33. Rde1 {[%clk 0:00:21]}  Qxc2 {[%clk 0:01:16]} 34. Rxe5 {[%clk 0:00:21]}  Qc5+ {[%clk 0:01:14]} 35. Kh1 {[%clk 0:00:20]}  Qd6 {[%clk 0:01:11]} 36. g4 {[%clk 0:00:13]}  Ka7 {[%clk 0:01:07]} 37. Rff5 {[%clk 0:00:11]}  Bc8 {[%clk 0:01:05]} 38. Ne4 {[%clk 0:00:07]}  Qb4 {[%clk 0:01:01]} 39. Rxf7 {[%clk 0:00:05]}  Qe1+ {[%clk 0:00:53]} 40. Kg2 {[%clk 0:00:04]}  Qe2+ {[%clk 0:00:53]} 41. Kg3 {[%clk 0:00:02]}  Qxg4+ {[%clk 0:00:52]} 42. Kf2 {[%clk 0:00:03]}  Qh4+ {[%clk 0:00:48]} 43. Ke3 {[%clk 0:00:02]}  Kb6 {[%clk 0:00:44]} 44. Rf6+ {[%clk 0:00:02]}  Ka5 {[%clk 0:00:43]} 45. Rc6 {[%clk 0:00:02]}  Rxh5 {[%clk 0:00:41]} 46. Rxc7 {[%clk 0:00:02]}  Rxe5 {[%clk 0:00:40]} 0-1


[Site "https://www.chess.com"]

[Event "Titled Tuesday Blitz November 08 Late 2022"]
[White "Kunin, Vitaly"]
[Black "Andreikin, Dmitry"]
[WhiteFideId "4128737"]
[BlackFideId "4158814"]
[WhiteElo "2417"]
[BlackElo "2736"]
[Result "0-1"]
[Round "04"]
[TimeControl "180+1"]
[Date "2022.11.08"]
[WhiteClock "0:00:05"]
[BlackClock "0:00:21"]

1. d4 {[%clk 0:02:57]}  Nf6 {[%clk 0:02:59]} 2. c4 {[%clk 0:02:56]}  e6 {[%clk 0:02:59]} 3. Nc3 {[%clk 0:02:56]}  Bb4 {[%clk 0:02:59]} 4. Nf3 {[%clk 0:02:56]}  O-O {[%clk 0:02:59]} 5. Bd2 {[%clk 0:02:51]}  d5 {[%clk 0:02:53]} 6. e3 {[%clk 0:02:49]}  c6 {[%clk 0:02:49]} 7. Bd3 {[%clk 0:02:47]}  Nbd7 {[%clk 0:02:47]} 8. O-O {[%clk 0:02:46]}  dxc4 {[%clk 0:02:47]} 9. Bxc4 {[%clk 0:02:46]}  Bd6 {[%clk 0:02:47]} 10. h3 {[%clk 0:02:43]}  e5 {[%clk 0:02:47]} 11. Qc2 {[%clk 0:02:18]}  Qe7 {[%clk 0:02:46]} 12. Bd3 {[%clk 0:02:10]}  Re8 {[%clk 0:02:45]} 13. Ng5 {[%clk 0:02:07]}  h6 {[%clk 0:02:40]} 14. Nge4 {[%clk 0:02:07]}  Bb8 {[%clk 0:02:39]} 15. Rfe1 {[%clk 0:02:03]}  Nxe4 {[%clk 0:02:36]} 16. Bxe4 {[%clk 0:01:57]}  Nf6 {[%clk 0:02:35]} 17. Bf5 {[%clk 0:01:53]}  Bc7 {[%clk 0:02:18]} 18. Bxc8 {[%clk 0:01:48]}  Raxc8 {[%clk 0:02:19]} 19. dxe5 {[%clk 0:01:45]}  Qxe5 {[%clk 0:02:16]} 20. g3 {[%clk 0:01:39]}  h5 {[%clk 0:01:52]} 21. h4 {[%clk 0:01:24]}  Ng4 {[%clk 0:01:49]} 22. Rf1 {[%clk 0:01:02]}  Re6 {[%clk 0:01:41]} 23. Ne2 {[%clk 0:00:53]}  g5 {[%clk 0:01:36]} 24. Bc3 {[%clk 0:00:37]}  Qc5 {[%clk 0:01:26]} 25. Nd4 {[%clk 0:00:32]}  Rg6 {[%clk 0:01:23]} 26. Qf5 {[%clk 0:00:32]}  Qxf5 {[%clk 0:01:19]} 27. Nxf5 {[%clk 0:00:33]}  Re8 {[%clk 0:01:08]} 28. Rad1 {[%clk 0:00:32]}  gxh4 {[%clk 0:01:03]} 29. Rd7 {[%clk 0:00:29]}  hxg3 {[%clk 0:00:45]} 30. Rxc7 {[%clk 0:00:28]}  gxf2+ {[%clk 0:00:45]} 31. Kh1 {[%clk 0:00:25]}  Rg5 {[%clk 0:00:32]} 32. Ne7+ {[%clk 0:00:21]}  Kf8 {[%clk 0:00:27]} 33. Bb4 {[%clk 0:00:21]}  c5 {[%clk 0:00:22]} 34. Rxc5 {[%clk 0:00:20]}  Rxc5 {[%clk 0:00:21]} 35. Bxc5 {[%clk 0:00:20]}  Rxe7 {[%clk 0:00:22]} 36. Bxe7+ {[%clk 0:00:11]}  Kxe7 {[%clk 0:00:22]} 37. e4 {[%clk 0:00:10]}  Ke6 {[%clk 0:00:20]} 38. Kg2 {[%clk 0:00:05]}  Ne3+ {[%clk 0:00:20]} 39. Kxf2 {[%clk 0:00:05]}  Nxf1 {[%clk 0:00:21]} 0-1


[Site "https://www.chess.com"]

[Event "Titled Tuesday Blitz November 08 Late 2022"]
[White "Ladan, Nicholas"]
[Black "Rose, Felix"]
[WhiteFideId "30918855"]
[BlackFideId "5105722"]
[WhiteElo "2167"]
[BlackElo "2039"]
[Result "1-0"]
[Round "04"]
[TimeControl "180+1"]
[Date "2022.11.09"]
[WhiteClock "0:00:09"]
[BlackClock "0:00:02"]

1. b3 {[%clk 0:03:00]}  e5 {[%clk 0:02:58]} 2. Bb2 {[%clk 0:03:01]}  Nc6 {[%clk 0:02:58]} 3. c4 {[%clk 0:03:01]}  Nf6 {[%clk 0:02:58]} 4. e3 {[%clk 0:03:00]}  d5 {[%clk 0:02:54]} 5. cxd5 {[%clk 0:02:58]}  Nxd5 {[%clk 0:02:50]} 6. a3 {[%clk 0:02:58]}  Be6 {[%clk 0:02:50]} 7. Nf3 {[%clk 0:02:54]}  f6 {[%clk 0:02:50]} 8. Qc2 {[%clk 0:02:48]}  Qd7 {[%clk 0:02:49]} 9. b4 {[%clk 0:02:48]}  O-O-O {[%clk 0:02:35]} 10. b5 {[%clk 0:02:48]}  Na5 {[%clk 0:02:31]} 11. d4 {[%clk 0:02:49]}  e4 {[%clk 0:02:10]} 12. Nfd2 {[%clk 0:02:49]}  f5 {[%clk 0:02:08]} 13. Nc3 {[%clk 0:02:49]}  b6 {[%clk 0:01:59]} 14. Rc1 {[%clk 0:02:38]}  Bd6 {[%clk 0:01:53]} 15. Nxd5 {[%clk 0:02:12]}  Bxd5 {[%clk 0:01:53]} 16. Nc4 {[%clk 0:02:12]}  Nxc4 {[%clk 0:01:51]} 17. Bxc4 {[%clk 0:02:13]}  Bxc4 {[%clk 0:01:42]} 18. Qxc4 {[%clk 0:02:14]}  f4 {[%clk 0:01:39]} 19. Qc6 {[%clk 0:01:42]}  Qxc6 {[%clk 0:01:37]} 20. Rxc6 {[%clk 0:01:43]}  fxe3 {[%clk 0:01:35]} 21. fxe3 {[%clk 0:01:43]}  Rhf8 {[%clk 0:01:32]} 22. Ke2 {[%clk 0:01:15]}  Rf5 {[%clk 0:01:24]} 23. Bc3 {[%clk 0:01:03]}  Rxb5 {[%clk 0:01:19]} 24. Rf1 {[%clk 0:00:59]}  Kb7 {[%clk 0:01:12]} 25. Rc4 {[%clk 0:00:59]}  Rb3 {[%clk 0:01:04]} 26. Rf7 {[%clk 0:00:52]}  Rxa3 {[%clk 0:00:53]} 27. d5 {[%clk 0:00:30]}  Ra2+ {[%clk 0:00:51]} 28. Kf1 {[%clk 0:00:21]}  b5 {[%clk 0:00:38]} 29. Rxe4 {[%clk 0:00:20]}  Bxh2 {[%clk 0:00:26]} 30. Rh4 {[%clk 0:00:12]}  Bg3 {[%clk 0:00:16]} 31. Rg4 {[%clk 0:00:12]}  Bh2 {[%clk 0:00:07]} 32. e4 {[%clk 0:00:12]}  Bd6 {[%clk 0:00:05]} 33. Rgxg7 {[%clk 0:00:12]}  b4 {[%clk 0:00:05]} 34. Bxb4 {[%clk 0:00:09]}  Bxb4 {[%clk 0:00:05]} 35. Rxc7+ {[%clk 0:00:09]}  Ka8 {[%clk 0:00:05]} 36. e5 {[%clk 0:00:09]}  Rf8+ {[%clk 0:00:02]} 37. Kg1 {[%clk 0:00:09]} 1-0


[Site "https://www.chess.com"]